bitfinex-derivatives/quotes_ETHF0:USTF0_20250210
["timestamp","ask_amount","ask_price","bid_price","bid_amount"]
[1739198071631,3.2078,2665.4,2664.3,3.2078]
[1739198071835,3.2078,2665.0,2664.4,40.8]
[1739198072532,3.2078,2665.0,2664.4,40.80562356]
[1739198073038,3.2078,2665.0,2664.4,44.01342356]
[1739198073333,0.00562356,2665.1,2664.4,40.80562356]
[1739198074332,3.21342356,2665.1,2664.4,40.80562356]
[1739198074931,3.2078,2664.8,2664.4,40.80562356]
[1739198076427,4.13219208,2664.7,2664.4,40.80562356]
[1739198076632,3.2078,2664.5,2664.4,0.00562356]
[1739198077035,4.13219208,2664.5,2664.4,0.00562356]
[1739198077537,0.00562356,2665.1,2664.4,6.00562356]
[1739198077728,2.914,2665.9,2664.4,6.00562356]
[1739198077729,3.2078,2665.9,2665.0,3.2078]
[1739198077927,3.2078,2666.4,2665.6,40.8]
[1739198078537,3.2078,2666.0,2665.6,40.8]
[1739198078829,3.62582716,2666.5,2665.6,40.8]
[1739198079026,0.00562356,2666.1,2665.6,40.8]
[1739198080133,0.00562356,2666.1,2665.7,3.2078]
[1739198080939,0.00562356,2666.1,2665.6,42.713]
[1739198081332,0.00562356,2666.1,2665.6,40.8]
[1739198081933,0.00562356,2666.1,2665.7,3.2078]
[1739198082134,0.00562356,2666.1,2665.6,40.8]
[1739198082330,0.00562356,2666.1,2665.7,3.2078]
[1739198083234,0.00562356,2666.1,2665.6,40.8]
[1739198086743,3.2078,2665.8,2665.5,0.00562356]
[1739198086933,3.2078,2665.8,2665.0,3.2078]
[1739198087239,3.2078,2665.5,2665.0,44.0078]
[1739198087444,3.2078,2665.5,2665.0,3.2078]
[1739198087635,4.23161473,2665.7,2664.3,2.65052]
[1739198087636,3.2078,2665.2,2664.6,3.2078]
[1739198087838,3.2078,2664.9,2664.2,3.2078]
[1739198088035,3.2078,2664.9,2664.0,0.5795]
[1739198088232,3.51224723,2664.8,2664.0,0.5795]
[1739198088433,6.72004723,2664.8,2664.1,40.8]
[1739198088638,3.2078,2665.1,2664.1,40.8]
[1739198088940,0.00562356,2664.7,2664.2,3.21342356]
[1739198089337,0.00562356,2664.7,2664.2,0.00562356]
[1739198090340,0.00562356,2664.7,2664.2,3.21342356]
[1739198090740,0.00562356,2664.7,2664.2,0.00562356]
[1739198092437,3.2078,2664.3,2664.2,0.00562356]
[1739198092939,3.2078,2664.3,2663.9,3.2078]
[1739198093742,0.5738,2664.6,2663.9,3.2078]
[1739198093743,3.7816,2664.6,2663.9,3.2078]
[1739198094143,0.5738,2664.6,2664.0,0.00562356]
[1739198095347,0.00562356,2664.7,2664.0,3.21342356]
[1739198095843,0.00562356,2664.7,2664.2,3.2078]
[1739198096946,0.00562356,2664.7,2664.0,0.00562356]
[1739198097145,3.21342356,2664.7,2664.0,0.00562356]
[1739198098341,0.00562356,2664.7,2664.0,0.75625356]
[1739198098544,0.00562356,2664.7,2664.0,0.00562356]
[1739198099044,0.00562356,2664.7,2664.1,40.8]
[1739198099641,0.00562356,2664.7,2664.3,3.2078]
[1739198100248,0.00562356,2664.7,2664.1,40.8]
[1739198100745,0.00562356,2664.7,2664.3,3.2078]
[1739198101050,0.00562356,2664.7,2664.1,40.8]
[1739198101051,0.00562356,2664.7,2664.6,3.2078]
[1739198101248,0.00562356,2664.7,2664.6,9.95826]
[1739198101451,3.2078,2666.3,2665.1,0.75032]
[1739198101644,3.2078,2666.3,2665.2,3.2078]
[1739198101846,4.09937682,2665.9,2665.2,3.95809]
[1739198102047,0.33836643,2666.2,2665.5,3.2078]
[1739198102346,1.7292,2666.5,2665.3,40.8]
[1739198102547,1.7292,2666.5,2665.6,0.00562356]
[1739198102548,3.2078,2665.9,2665.6,0.00562356]
[1739198102760,3.2078,2665.9,2664.4,1.909]
[1739198102761,9.2078,2665.9,2664.4,1.909]
[1739198103050,4.26611724,2665.8,2664.6,3.2078]
[1739198103452,0.6049,2665.7,2665.0,3.2078]
[1739198103645,0.6049,2665.7,2664.6,3.2078]
[1739198103846,0.6049,2665.7,2664.7,3.2078]
[1739198104147,0.6049,2665.7,2665.1,0.00562356]
[1739198104453,3.2078,2665.6,2665.1,0.00562356]
[1739198104649,3.2078,2665.3,2665.1,0.00562356]
[1739198104956,4.20486567,2665.2,2664.0,3.2078]
[1739198105151,3.2078,2664.9,2664.0,3.2078]
[1739198105450,3.2078,2664.9,2664.0,44.0078]
[1739198105846,3.2078,2664.6,2664.0,3.2078]
[1739198106046,3.2078,2664.3,2664.2,0.00374904]
[1739198106250,3.2078,2664.3,2663.4,3.2078]
[1739198106441,3.2078,2664.3,2663.5,40.8]
[1739198106647,3.2078,2664.1,2663.5,40.8]
[1739198106846,3.2078,2663.8,2662.9,11.29450539]
[1739198107248,3.2078,2664.1,2662.9,11.29450539]
[1739198107444,3.2078,2664.1,2663.0,40.8]
[1739198107651,4.65686364,2664.0,2663.0,40.8]
[1739198107954,0.6062,2664.0,2663.4,3.2078]
[1739198108161,0.00562356,2664.7,2663.9,3.2078]
[1739198108349,0.00562356,2664.7,2664.2,3.2078]
[1739198108551,0.00562356,2664.7,2663.6,0.5708]
[1739198108552,0.00562356,2664.7,2664.5,3.2078]
[1739198108846,0.00562356,2664.7,2664.4,3.2078]
[1739198109653,0.00562356,2664.7,2664.4,9.2078]
[1739198109859,0.00562356,2664.7,2664.5,0.5708]
[1739198110153,4.1295,2667.3,2664.5,0.5708]
[1739198110154,3.2078,2666.7,2664.5,11.39434164]
[1739198110353,3.2078,2666.2,2664.8,3.2078]
[1739198110657,3.2078,2665.6,2664.8,3.2078]
[1739198110852,3.2078,2665.6,2664.5,0.5708]
[1739198111052,3.99149418,2665.5,2664.5,0.5708]
[1739198111357,4.353,2665.8,2664.8,0.00562356]
[1739198111358,0.00562356,2665.3,2664.8,0.00562356]
[1739198112250,0.00562356,2665.3,2664.9,3.2078]
[1739198112957,0.00562356,2665.3,2665.0,40.8]
[1739198114056,0.00562356,2665.3,2664.8,0.00562356]
[1739198114653,0.00562356,2665.3,2664.9,3.2078]
[1739198115455,3.2078,2666.6,2665.2,3.2078]
[1739198115753,3.62582716,2667.3,2666.3,3.2078]
[1739198115754,4.85940907,2667.1,2666.3,3.2078]
[1739198116160,4.85940907,2667.1,2666.6,3.2078]
[1739198116161,0.5532,2667.1,2666.6,3.2078]
[1739198116351,0.5532,2667.1,2666.3,3.2078]
[1739198116955,0.00562356,2667.0,2666.4,0.00562356]
[1739198117367,3.21342356,2667.0,2666.4,0.00562356]
[1739198117760,3.2078,2666.7,2665.8,1.928]
[1739198117955,3.2078,2666.4,2665.8,1.928]
[1739198118167,3.2078,2666.2,2664.9,3.2078]
[1739198118369,0.5751,2666.1,2664.9,3.2078]
[1739198118559,0.67276175,2666.1,2664.9,3.2078]
[1739198118761,0.67276175,2666.1,2665.2,3.2078]
[1739198118962,0.67276175,2666.1,2665.2,3.21342356]
[1739198119264,3.2078,2665.9,2665.2,0.00562356]
[1739198119464,3.2078,2665.6,2665.2,0.00562356]
[1739198119661,4.23173016,2665.8,2665.2,0.00562356]
[1739198119865,3.21342356,2665.9,2665.2,0.00562356]
[1739198120061,3.2078,2665.6,2665.2,0.00562356]
[1739198121362,3.92901332,2665.5,2665.2,0.00562356]
[1739198121766,3.2078,2665.6,2665.2,0.00562356]
[1739198122969,0.6094,2665.8,2665.2,0.00562356]
[1739198123171,0.00562356,2665.9,2665.5,3.2078]
[1739198123370,0.00562356,2665.9,2665.2,0.00562356]
[1739198123371,0.00562356,2665.9,2665.6,3.2078]
[1739198124376,0.00562356,2665.9,2665.7,41.55014]
[1739198124567,3.2078,2667.0,2665.8,0.75011]
[1739198124767,3.2078,2667.0,2666.1,3.2078]
[1739198125977,0.00562356,2666.8,2666.1,3.2078]
[1739198127471,0.00562356,2666.8,2666.4,3.2078]
[1739198127666,0.00562356,2666.8,2666.7,3.2078]
[1739198128072,0.00562356,2666.8,2666.7,1.916]
[1739198128574,0.00562356,2666.8,2666.5,40.8]
[1739198128775,0.00562356,2666.8,2666.4,3.2078]
[1739198129866,0.00562356,2666.8,2665.7,3.50629716]
[1739198130175,3.90502641,2666.7,2665.7,3.2078]
[1739198130366,3.2078,2666.3,2665.7,3.2078]
[1739198130566,3.2078,2666.3,2665.3,3.2078]
[1739198130767,3.2078,2666.2,2665.2,1.92962356]
[1739198131073,3.2078,2665.7,2665.2,0.00562356]
[1739198131475,3.2078,2665.4,2665.2,0.00562356]
[1739198132882,3.2078,2665.8,2665.2,0.00562356]
[1739198133274,4.23959838,2665.7,2665.2,0.00562356]
[1739198133579,3.2078,2665.8,2665.2,0.00562356]
[1739198133777,3.2078,2665.5,2665.2,0.00562356]
[1739198133971,3.90531929,2665.7,2665.2,0.00562356]
[1739198134171,3.2078,2665.8,2665.2,0.00562356]
[1739198134375,7.11311929,2666.1,2665.2,3.21342356]
[1739198134580,3.2078,2666.1,2665.2,3.21342356]
[1739198134878,4.3343542,2666.0,2665.2,0.00562356]
[1739198135376,3.2078,2665.7,2665.2,0.00562356]
[1739198135775,3.2078,2665.4,2665.2,0.00562356]
[1739198136173,3.2078,2665.7,2665.2,0.00562356]
[1739198136371,1.925,2666.4,2665.2,0.00562356]
[1739198136372,3.2078,2665.4,2665.2,0.00562356]
[1739198136579,3.2078,2665.4,2664.6,3.2078]
[1739198136580,3.2078,2665.4,2664.3,3.2078]
[1739198136774,5.96269147,2665.6,2664.3,3.2078]
[1739198136775,3.2078,2664.9,2664.3,3.2078]
[1739198137084,3.2078,2664.9,2664.4,40.8]
[1739198137381,4.22659147,2664.8,2664.4,40.8]
[1739198137581,3.2078,2664.9,2664.4,40.8]
[1739198137882,0.00562356,2664.9,2664.4,40.8]
[1739198139177,3.2078,2664.6,2664.3,0.00562356]
[1739198139681,3.2078,2664.6,2662.9,0.6062]
[1739198139682,4.03340102,2664.5,2663.0,3.62582716]
[1739198139871,3.2078,2663.8,2662.8,3.2078]
[1739198140074,3.2078,2664.1,2662.8,3.2078]
[1739198140280,3.2078,2664.1,2663.1,40.8]
[1739198140487,4.04017346,2664.0,2663.1,44.0078]
[1739198140979,0.00562356,2663.8,2663.1,44.0078]
[1739198141374,0.00562356,2663.8,2663.1,40.8]
[1739198142581,4.27641225,2663.7,2663.1,40.8]
[1739198142773,3.2078,2663.6,2663.1,40.8]
[1739198143176,4.27641225,2663.5,2663.1,40.8]
[1739198143379,0.58242356,2663.8,2663.1,40.8]
[1739198143777,3.2078,2663.6,2663.1,40.8]
[1739198143977,3.2078,2663.6,2662.9,3.2078]
[1739198144178,3.2078,2663.6,2662.6,3.2078]
[1739198144384,3.2078,2663.6,2662.7,40.8]
[1739198145476,3.2078,2663.6,2662.9,3.2078]
[1739198145684,0.58242356,2663.8,2663.4,3.2078]
[1739198146583,0.00562356,2663.8,2663.4,3.2078]
[1739198146785,0.00562356,2663.8,2663.3,3.2078]
[1739198147088,0.00562356,2663.8,2663.7,3.2078]
[1739198147286,0.00562356,2663.8,2663.4,6.83362716]
[1739198147886,0.00562356,2663.8,2663.7,40.8]
[1739198148092,0.00562356,2663.8,2663.7,44.0078]
[1739198148388,3.2078,2665.3,2663.7,50.0078]
[1739198148581,1.1382,2665.5,2664.4,3.2078]
[1739198148780,4.32215129,2665.2,2664.4,3.2078]
[1739198149084,4.32215129,2665.4,2665.1,3.2078]
[1739198149383,0.5674,2665.5,2665.1,3.2078]
[1739198149583,0.5674,2665.5,2664.5,3.62582716]
[1739198149584,0.57302356,2665.5,2665.0,0.00562356]
[1739198149779,4.17943327,2665.4,2665.0,0.00562356]
[1739198149983,0.57302356,2665.5,2665.1,3.2078]
[1739198150488,4.17943327,2665.4,2665.0,0.00562356]
[1739198150690,3.2078,2665.4,2665.0,0.00562356]
[1739198151188,0.57302356,2665.5,2665.0,0.00562356]
[1739198151599,4.25289194,2665.4,2665.0,0.00562356]
[1739198152883,7.46069194,2665.4,2665.0,0.00562356]
[1739198153083,0.5809,2665.3,2665.0,0.00562356]
[1739198153387,4.19041266,2665.2,2665.0,0.00562356]
[1739198153795,0.57302356,2665.5,2665.0,0.00562356]
[1739198154285,0.57302356,2665.5,2665.1,40.8]
[1739198154885,0.57302356,2665.5,2665.4,3.2078]
[1739198155090,3.2078,2667.0,2665.4,3.2078]
[1739198155387,4.17349734,2666.9,2666.0,3.2078]
[1739198155891,3.2078,2667.0,2666.0,3.2078]
[1739198156292,4.17349734,2666.9,2666.0,3.2078]
[1739198156487,0.00562356,2666.8,2666.3,3.2078]
[1739198157785,0.00562356,2666.8,2666.2,0.00562356]
[1739198157983,3.62582716,2666.4,2665.6,3.2078]
[1739198158188,3.2078,2665.7,2665.0,3.2078]
[1739198158489,3.2078,2665.7,2663.5,2.5259]
[1739198158490,3.2078,2665.1,2663.7,7.13017321]
[1739198158787,3.2078,2664.9,2663.7,6.83362716]
[1739198158991,3.2078,2664.6,2663.7,3.2078]
[1739198159187,3.2078,2664.3,2663.6,40.8]
[1739198159385,3.2078,2664.3,2664.0,0.00562356]
[1739198159585,0.55037613,2664.2,2664.0,0.00562356]
[1739198160398,3.2078,2664.5,2664.0,0.00562356]
[1739198160789,7.2109137,2664.5,2664.0,0.00562356]
[1739198161495,3.2078,2664.1,2664.0,0.00562356]
[1739198161697,3.2078,2664.1,2663.6,40.8]
[1739198161892,3.90548737,2664.1,2663.6,40.8]
[1739198162097,3.2078,2664.0,2663.6,40.8]
[1739198162493,4.11659496,2663.9,2663.6,40.8]
[1739198162889,4.11659496,2663.9,2663.8,3.2078]
[1739198163099,4.11659496,2663.9,2663.6,40.8]
[1739198163497,3.7593,2664.3,2663.6,40.8]
[1739198163797,3.2078,2664.0,2663.6,40.8]
[1739198164196,3.2078,2664.0,2662.9,3.2078]
[1739198164197,3.2078,2663.7,2662.6,3.2078]
[1739198164388,3.2078,2663.2,2662.6,3.2078]
[1739198164593,3.2078,2663.5,2662.6,3.2078]
[1739198164792,3.2078,2663.5,2662.7,40.8]
[1739198165190,0.00562356,2663.3,2662.7,40.8]
[1739198165586,0.00562356,2663.3,2662.9,3.2078]
[1739198167600,0.5515,2664.3,2663.2,3.2078]
[1739198168003,0.5515,2664.3,2663.5,3.2078]
[1739198168398,3.2078,2664.8,2663.5,3.2078]
[1739198168591,0.5703,2665.2,2664.2,3.2078]
[1739198168795,0.5703,2665.2,2664.5,3.2078]
[1739198168993,4.31057305,2665.1,2664.5,3.2078]
[1739198169199,3.769,2665.3,2664.5,3.2078]
[1739198169400,3.769,2665.3,2664.2,3.2078]
[1739198169702,0.00562356,2665.1,2664.5,3.2078]
[1739198170404,0.00562356,2665.1,2664.8,3.2078]
[1739198171100,0.00562356,2665.1,2664.6,40.8]
[1739198171295,0.00562356,2665.1,2664.8,3.2078]
[1739198171695,3.8168,2666.3,2664.9,3.62582716]
[1739198171895,0.609,2666.3,2665.2,3.2078]
[1739198172093,7.1529555,2666.2,2665.2,3.2078]
[1739198172299,3.2078,2665.8,2664.8,3.2078]
[1739198172599,3.2078,2665.8,2664.6,40.8]
[1739198172600,4.17088324,2665.7,2664.6,40.8]
[1739198173199,0.00562356,2665.6,2665.0,0.00562356]
[1739198173507,7.28096957,2665.5,2665.0,0.00562356]
[1739198174001,0.00562356,2665.6,2665.1,44.0078]
[1739198174207,0.00562356,2665.6,2665.5,3.2078]
[1739198174505,0.00562356,2665.6,2665.2,3.2078]
[1739198174808,0.00562356,2665.6,2665.5,3.2078]
[1739198174999,0.00562356,2665.6,2665.5,44.0078]
[1739198175201,0.00562356,2665.6,2665.5,40.8]
[1739198175895,0.00562356,2665.6,2665.0,0.00562356]
[1739198178604,0.00562356,2665.6,2665.1,3.2078]
[1739198179303,0.00562356,2665.6,2665.4,3.2078]
[1739198179508,0.609,2666.3,2665.8,0.75011]
[1739198179700,1.1734,2666.7,2665.9,3.2078]
[1739198180097,4.25819101,2666.6,2665.5,5.1318]
[1739198180398,4.25819101,2666.6,2665.6,3.2078]
[1739198180399,3.2078,2666.4,2665.6,3.2078]
[1739198180600,4.25819101,2666.6,2665.7,3.2078]
[1739198180799,4.35257071,2666.3,2665.5,1.924]
[1739198181006,0.00562356,2666.3,2665.9,3.2078]
[1739198181311,0.00562356,2666.3,2666.2,3.2078]
[1739198181528,0.00562356,2666.3,2666.2,5.1318]
[1739198181812,0.596,2667.8,2666.8,0.74984]
[1739198182004,0.596,2667.8,2667.4,3.2078]
[1739198182199,0.596,2667.8,2667.4,44.0078]
[1739198183010,0.596,2667.8,2667.4,3.2078]
[1739198183508,0.596,2667.8,2667.5,40.8]
[1739198184114,0.596,2667.8,2667.4,3.2078]
[1739198184704,4.3200526,2667.7,2667.4,3.2078]
[1739198185109,7.5278526,2667.7,2667.3,0.00562356]
[1739198185906,3.2078,2667.4,2666.2,3.2078]
[1739198186109,3.2078,2667.1,2666.2,3.2078]
[1739198186508,3.98666438,2667.0,2666.2,3.2078]
[1739198186709,3.98666438,2667.0,2665.9,3.2078]
[1739198186916,0.5889,2666.9,2665.9,3.2078]
[1739198187112,0.5889,2666.9,2666.2,3.2078]
[1739198187414,3.98666438,2666.8,2666.5,3.2078]
[1739198187616,0.00562356,2666.7,2666.5,3.2078]
[1739198187808,0.00562356,2666.7,2666.2,0.00562356]
[1739198189218,7.30079397,2666.6,2666.2,0.00562356]
[1739198189510,3.2078,2666.3,2666.2,0.00562356]
[1739198189712,3.2078,2666.3,2665.1,3.2078]
[1739198189914,7.11674051,2666.3,2665.1,3.2078]
[1739198190117,3.2078,2666.0,2664.9,1.924]
[1739198190316,0.5581,2665.9,2664.7,3.7836]
[1739198190517,3.2078,2665.7,2664.7,0.5758]
[1739198190813,3.2078,2665.7,2664.4,3.2597]
[1739198190814,3.2078,2665.8,2664.4,3.2078]
[1739198191003,3.99084484,2665.6,2664.4,3.2078]
[1739198191210,7.19864484,2665.8,2664.9,0.00562356]
[1739198191422,3.2078,2665.5,2664.9,0.00562356]
[1739198191605,3.2078,2665.8,2664.9,0.00562356]
[1739198191811,7.11812031,2665.8,2664.9,0.00562356]
[1739198192113,3.2078,2665.5,2664.9,0.00562356]
[1739198193215,0.00562356,2665.6,2664.9,0.00562356]
[1739198193412,0.00562356,2665.6,2665.1,3.2078]
[1739198195119,0.00562356,2665.6,2665.5,3.2078]
[1739198195308,0.00562356,2665.6,2665.2,3.2078]
[1739198195515,0.00562356,2665.6,2665.0,1.914]
[1739198195714,0.00562356,2665.6,2665.1,40.8]
[1739198196319,3.2078,2665.5,2665.1,40.8]
[1739198196525,3.95811,2665.2,2664.9,0.00562356]
[1739198196717,3.2078,2665.2,2664.9,0.00562356]
[1739198196922,4.17374962,2665.1,2664.9,0.00562356]
[1739198197418,3.2078,2665.2,2664.9,0.00562356]
[1739198197722,3.2078,2665.2,2663.8,1.916]
[1739198197723,4.17374962,2665.1,2663.8,1.916]
[1739198198025,3.2078,2664.3,2663.3,5.1218]
[1739198198321,3.2078,2664.0,2663.4,40.8]
[1739198198720,3.21342356,2664.0,2663.4,40.80562356]
[1739198198922,0.00562356,2664.0,2663.4,40.80562356]
[1739198199220,3.21342356,2664.0,2663.4,0.00562356]
[1739198199424,3.2078,2663.7,2663.4,0.00562356]
[1739198199930,4.20673504,2663.6,2663.4,0.00562356]
[1739198202022,3.2078,2663.7,2663.4,0.00562356]
[1739198202326,0.00562356,2664.0,2663.6,3.2078]
[1739198203117,0.00562356,2664.0,2663.9,3.2078]
[1739198203323,0.5885,2664.7,2663.9,3.2078]
[1739198203324,0.5539,2664.8,2663.9,45.9178]
[1739198203622,3.7617,2664.8,2663.9,45.9178]
[1739198203821,3.7617,2664.8,2663.9,44.0078]
[1739198204026,3.2078,2664.1,2663.4,0.00562356]
[1739198204220,3.2078,2663.7,2663.4,0.00562356]
[1739198204418,3.2078,2663.7,2663.5,40.8]
[1739198205021,3.2078,2663.7,2663.4,0.00562356]
[1739198205826,4.19684553,2663.6,2663.4,0.00562356]
[1739198207219,3.62582716,2663.5,2662.3,3.2078]
[1739198207415,3.2078,2663.2,2662.3,3.2078]
[1739198207827,4.18024396,2663.1,2662.3,3.2078]
[1739198208424,3.2078,2663.3,2662.2,3.2078]
[1739198208619,3.2078,2663.3,2662.3,0.75111]
[1739198208820,0.5816,2663.5,2662.7,3.2078]
[1739198209119,0.5816,2663.5,2662.4,0.00562356]
[1739198209422,3.2078,2663.2,2662.4,0.00562356]
[1739198210819,3.2078,2663.2,2662.7,3.2078]
[1739198211025,3.2078,2663.2,2662.4,0.00562356]
[1739198211922,3.2078,2662.9,2662.4,0.00562356]
[1739198213132,3.2078,2662.9,2662.5,40.8]
[1739198213335,3.2078,2662.9,2662.4,0.00562356]
[1739198213627,3.2078,2662.6,2662.4,0.00562356]
[1739198214031,3.99717376,2662.5,2662.4,0.00562356]
[1739198214226,4.74823376,2662.5,2661.3,3.2078]
[1739198214431,3.2078,2661.8,2661.3,3.2078]
[1739198214629,3.2078,2661.8,2661.4,40.8]
[1739198214938,3.2078,2662.1,2661.4,40.8]
[1739198215327,3.2078,2661.8,2661.3,3.2078]
[1739198216035,0.00563433,2662.0,2661.3,3.2078]
[1739198216535,3.2078,2661.8,2660.9,40.8]
[1739198216937,4.22726342,2661.7,2660.9,40.8]
[1739198217326,3.2078,2661.5,2660.9,40.8]
[1739198218232,3.2078,2661.2,2660.3,3.2078]
[1739198218430,3.2078,2660.9,2660.3,3.2078]
[1739198218835,3.91154278,2660.8,2660.3,3.2078]
[1739198219435,3.91154278,2660.8,2658.3,21.64322]
[1739198219436,3.2078,2660.6,2659.4,3.2078]
[1739198219730,0.75149,2661.0,2659.1,15.78350731]
[1739198219731,3.2078,2660.5,2659.1,15.78350731]
[1739198219930,7.42607336,2660.5,2659.1,15.78350731]
[1739198220235,0.00563433,2660.1,2659.2,3.2078]
[1739198220642,0.00563433,2660.1,2658.9,3.2078]
[1739198220643,3.2078,2659.9,2658.9,3.2078]
[1739198220940,3.62582716,2659.1,2657.5,3.2078]
[1739198221131,3.2078,2658.4,2657.5,3.2078]
[1739198221734,3.62582716,2658.5,2657.0,1.1732]
[1739198221735,3.2078,2657.8,2657.0,1.1732]
[1739198222033,3.2078,2657.3,2656.9,11.69890016]
[1739198222435,3.2078,2657.6,2656.9,11.69890016]
[1739198222740,7.46098332,2658.0,2656.9,11.69890016]
[1739198223033,3.2078,2657.7,2656.9,11.69890016]
[1739198223337,3.2078,2657.0,2656.9,11.69890016]
[1739198223837,13.29683412,2657.0,2655.5,3.2078]
[1739198224039,3.2078,2656.5,2656.1,3.764]
[1739198224430,4.28299179,2656.4,2655.8,3.2078]
[1739198224628,0.6092,2657.2,2656.8,3.764]
[1739198224838,3.817,2657.2,2656.9,3.764]
[1739198225032,4.35113555,2657.0,2656.9,3.764]
[1739198225239,3.2078,2657.5,2657.0,3.764]
[1739198225429,3.2078,2657.5,2656.3,3.2078]
[1739198225636,4.35113555,2657.0,2656.8,3.764]
[1739198225939,3.2078,2657.2,2656.9,40.8]
[1739198226134,4.14882645,2656.9,2655.6,3.2078]
[1739198226335,3.2078,2656.2,2655.7,3.764]
[1739198226728,3.2078,2655.8,2654.5,3.2078]
[1739198226933,3.2078,2655.1,2654.5,3.764]
[1739198227236,3.2078,2655.1,2653.3,24.66270245]
[1739198227237,7.60322198,2655.0,2653.6,3.2078]
[1739198227431,3.97739482,2655.0,2654.6,3.764]
[1739198228039,3.2078,2654.8,2653.9,3.2078]
[1739198228337,3.62582716,2654.1,2653.0,3.2078]
[1739198228539,3.2078,2653.5,2652.4,3.2078]
[1739198228740,3.2078,2652.9,2652.7,3.764]
[1739198228940,6.83362716,2653.3,2652.7,3.764]
[1739198229130,4.11782327,2653.4,2653.2,3.764]
[1739198229441,5.2838,2653.9,2653.3,3.764]
[1739198229738,3.62582716,2654.5,2653.8,3.764]
[1739198229942,3.2078,2654.3,2653.8,3.764]
[1739198230135,4.18521187,2653.9,2653.8,3.764]
[1739198230441,0.09282347,2654.2,2654.1,3.764]
[1739198230641,4.06735992,2653.9,2653.0,3.2078]
[1739198230942,3.2078,2653.6,2653.1,3.764]
[1739198231344,2.128,2654.0,2652.5,3.62582716]
[1739198231345,4.06735992,2653.5,2652.5,3.62582716]
[1739198231646,0.00564525,2654.4,2653.9,3.764]
[1739198231937,3.2078,2654.0,2653.5,3.764]
[1739198232144,3.2078,2654.1,2653.4,3.764]
[1739198232337,3.2078,2653.7,2652.1,6.83362716]
[1739198232537,3.2078,2653.1,2652.8,3.764]
[1739198232739,3.2078,2653.4,2652.9,3.764]
[1739198232944,4.07425267,2653.0,2652.4,3.2078]
[1739198233149,0.6083,2653.8,2653.3,3.764]
[1739198233334,3.2078,2654.4,2653.7,3.764]
[1739198233542,3.2078,2654.4,2654.3,3.764]
[1739198233741,3.62582716,2654.9,2654.3,3.764]
[1739198233742,3.2078,2654.9,2654.3,3.764]
[1739198233947,3.2078,2655.2,2654.8,3.764]
[1739198234138,3.2078,2655.2,2654.9,3.764]
[1739198234345,13.53110162,2655.2,2654.7,40.8]
[1739198234544,3.2078,2654.8,2654.7,40.8]
[1739198234745,3.2078,2654.8,2653.0,3.2078]
[1739198235042,3.2078,2654.5,2654.1,3.764]
[1739198235241,3.2078,2654.5,2654.4,3.764]
[1739198235644,12.83362716,2654.5,2653.5,3.2078]
[1739198235844,12.83362716,2654.5,2653.2,3.764]
[1739198235845,3.2078,2653.6,2653.2,3.764]
[1739198236041,3.2078,2653.6,2653.0,40.8]
[1739198236249,4.27531238,2653.5,2653.1,3.764]
[1739198236443,4.27531238,2653.5,2653.2,3.764]
[1739198237541,4.27531238,2653.5,2653.4,3.764]
[1739198238142,0.00564525,2653.6,2653.4,6.9718]
[1739198238451,3.2078,2655.0,2653.4,9.2078]
[1739198238643,3.7621,2654.7,2654.5,3.764]
[1739198238842,3.99920039,2654.6,2654.4,3.764]
[1739198239442,9.99920039,2654.6,2653.0,3.2078]
[1739198239645,3.2078,2654.0,2653.9,3.764]
[1739198239843,3.2078,2654.0,2653.5,3.764]
[1739198240046,7.55342025,2654.0,2653.5,3.764]
[1739198240245,7.55342025,2654.0,2653.7,0.00564525]
[1739198241455,7.55342025,2654.0,2653.8,3.764]
[1739198241658,7.55342025,2654.0,2653.9,3.764]
[1739198242553,3.2078,2654.5,2653.9,3.764]
[1739198242756,3.2078,2654.5,2654.3,3.764]
[1739198242952,4.13230926,2654.4,2654.3,3.764]
[1739198243149,4.13230926,2654.4,2653.7,0.00564525]
[1739198243150,3.2078,2654.5,2654.4,3.764]
[1739198243352,0.00564525,2654.8,2654.4,3.764]
[1739198243559,4.13230926,2654.5,2654.4,3.764]
[1739198243751,3.2078,2654.5,2653.7,0.00564525]
[1739198243954,3.2078,2654.2,2653.7,0.00564525]
[1739198244151,3.2078,2654.2,2653.9,3.764]
[1739198244358,3.49936447,2654.1,2653.9,3.764]
[1739198244653,3.49936447,2654.1,2653.7,0.00564525]
[1739198244654,7.12519163,2654.1,2653.7,0.00564525]
[1739198244959,3.2078,2653.8,2653.7,0.00564525]
[1739198245360,13.16948008,2653.8,2652.8,40.8]
[1739198245655,13.16948008,2653.8,2652.2,0.559]
[1739198245656,3.2078,2653.0,2652.2,0.559]
[1739198245863,3.2078,2653.0,2652.9,3.764]
[1739198246056,4.15245789,2652.9,2652.8,3.764]
[1739198246266,7.36025789,2653.0,2652.7,3.764]
[1739198246567,6.83362716,2653.0,2652.5,3.764]
[1739198246751,6.83362716,2652.6,2651.2,3.2078]
[1739198246957,3.2078,2651.9,2651.2,3.2078]
[1739198247258,7.35803834,2652.5,2651.2,3.2078]
[1739198247465,3.2078,2652.5,2652.2,1.927]
[1739198247665,3.2078,2652.5,2652.1,1.927]
[1739198247862,0.00564525,2653.1,2650.8,3.2078]
[1739198247863,3.2078,2652.2,2650.8,3.2078]
[1739198248062,3.2078,2650.4,2648.9,0.30766475]
[1739198248259,23.848,2652.1,2647.9,1.5984038]
[1739198248260,3.2078,2649.0,2647.9,1.5984038]
[1739198248457,3.2078,2648.7,2647.9,1.5984038]
[1739198248760,4.20629696,2648.9,2647.9,3.2078]
[1739198249072,7.13152413,2648.6,2647.6,3.2078]
[1739198249265,3.2078,2647.9,2646.8,3.2078]
[1739198249462,3.2078,2648.3,2647.2,3.2078]
[1739198249656,4.29246385,2647.8,2646.8,3.2078]
[1739198249963,3.2078,2647.3,2646.8,3.2078]